fUST/lending_fUST_20240706
["ID","MTS","AMOUNT","RATE_DAILY","PERIOD"]
[331329083,1720239041490,-1240.26640052,0.0004646,2]
[331329084,1720239041500,-1240.26640052,0.00046465,2]
[331329085,1720239041509,-1240.26640052,0.00046469,2]
[331329092,1720239041692,-1240.26640052,0.00046474,2]
[331329093,1720239041702,-1239.19,0.00046545,30]
[331329094,1720239041712,-1032.66,0.00046545,30]
[331329095,1720239041722,-1441.48,0.00046545,3]
[331329096,1720239041731,-860.55,0.00046545,30]
[331329097,1720239041741,-2250.63,0.00046545,3]
[331329098,1720239041751,-717.13,0.00046545,30]
[331329099,1720239041761,-362.22765402,0.00046554,120]
[331329100,1720239041771,-164.1961937,0.00046554,31]
[331329101,1720239041780,-500.0,0.00046554,7]
[331329102,1720239041790,-252.35104302,0.00046554,120]
[331329103,1720239041799,-500.0,0.00046554,7]
[331329104,1720239041809,-500.0,0.00046554,7]
[331329105,1720239041820,-500.0,0.00046554,7]
[331329106,1720239041831,-500.0,0.00046554,7]
[331329107,1720239041840,-500.0,0.00046554,7]
[331329108,1720239041851,-500.0,0.00046554,7]
[331329109,1720239041860,-500.0,0.00046554,7]
[331329110,1720239041869,-190.65320775,0.00046554,7]
[331329111,1720239041880,-78958.6923711,0.00046555,5]
[331329112,1720239041891,-2000.0,0.0004656,60]
[331329113,1720239041900,-2000.0,0.0004656,60]
[331329114,1720239041910,-2000.0,0.0004656,60]
[331329115,1720239041919,-2000.0,0.0004656,60]
[331329116,1720239041929,-2000.0,0.0004656,60]
[331329117,1720239041938,-2000.0,0.0004656,60]
[331329118,1720239041947,-2000.0,0.0004656,60]
[331329119,1720239041957,-2000.0,0.0004656,60]
[331329120,1720239041966,-2000.0,0.0004656,60]
[331329121,1720239041975,-2000.0,0.0004656,60]
[331329122,1720239041984,-2000.0,0.0004656,60]
[331329123,1720239041993,-2000.0,0.0004656,60]
[331329124,1720239042002,-2000.0,0.0004656,60]
[331329125,1720239042011,-1388.84046489,0.0004656,60]
[331329126,1720239042020,-78958.6923711,0.00046564,5]
[331329127,1720239042029,-151.0,0.00046564,14]
[331329128,1720239042039,-500.0,0.00046564,120]
[331329129,1720239042048,-500.0,0.00046564,31]
[331329130,1720239042058,-500.0,0.00046564,120]
[331329131,1720239042067,-500.0,0.00046564,120]
[331329132,1720239042076,-500.0,0.00046564,120]
[331329133,1720239042085,-500.0,0.00046564,120]
[331329134,1720239042094,-500.0,0.00046564,120]
[331329135,1720239042103,-500.0,0.00046564,120]
[331329136,1720239042113,-500.0,0.00046564,120]
[331329137,1720239042123,-500.0,0.00046564,120]
[331329139,1720239042133,-500.0,0.00046564,120]
[331329141,1720239042143,-500.0,0.00046564,120]
[331329142,1720239042152,-500.0,0.00046564,120]
[331329143,1720239042162,-500.0,0.00046564,120]
[331329144,1720239042171,-500.0,0.00046564,120]
[331329145,1720239042180,-500.0,0.00046564,120]
[331329146,1720239042189,-549.7501794,0.00046564,120]
[331329147,1720239042198,-500.0,0.00046564,120]
[331329148,1720239042208,-464.92505382,0.00046564,120]
[331329149,1720239042217,-46629.52866231,0.00046565,61]
[331329150,1720239042226,-50727.45380093,0.00046565,61]
[331329151,1720239042236,-151.0,0.00046565,14]
[331329152,1720239042245,-2507.14892,0.00046565,14]
[331329153,1720239042255,-2507.14892,0.00046565,14]
[331329154,1720239042263,-257.762496,0.00046565,14]
[331329155,1720239042272,-257.762496,0.00046565,14]
[331329156,1720239042282,-151.0,0.00046565,14]
[331329157,1720239042291,-151.0,0.00046565,14]
[331329158,1720239042307,-257.762496,0.00046565,14]
[331329159,1720239042320,-257.762496,0.00046565,14]
[331329160,1720239042330,-832.767873,0.00046565,14]
[331329161,1720239042339,-832.767873,0.00046565,14]
[331329162,1720239042348,-832.767873,0.00046565,14]
[331329163,1720239042357,-832.767873,0.00046565,14]
[331329164,1720239042366,-1916.047524,0.00046565,14]
[331329165,1720239042376,-1916.047524,0.00046565,14]
[331329166,1720239042385,-1916.047524,0.00046565,14]
[331329167,1720239042394,-1916.047524,0.00046565,14]
[331329168,1720239042403,-388.684565,0.00046565,14]
[331329169,1720239042414,-388.684565,0.00046565,14]
[331329170,1720239042423,-151.0,0.00046565,14]
[331329171,1720239042432,-151.0,0.00046565,14]
[331329172,1720239042442,-388.684565,0.00046565,14]
[331329173,1720239042451,-388.684565,0.00046565,14]
[331329174,1720239042460,-151.0,0.00046565,14]
[331329175,1720239042469,-151.0,0.00046565,14]
[331329176,1720239042478,-226.168764,0.00046565,14]
[331329177,1720239042487,-226.168764,0.00046565,14]
[331329178,1720239042496,-226.168764,0.00046565,14]
[331329179,1720239042506,-226.168764,0.00046565,14]
[331329180,1720239042515,-151.0,0.00046565,14]
[331329181,1720239042524,-151.0,0.00046565,14]
[331329182,1720239042533,-151.0,0.00046565,7]
[331329183,1720239042543,-151.0,0.00046565,7]
[331329185,1720239042552,-151.0,0.00046565,7]
[331329186,1720239042561,-151.0,0.00046565,7]
[331329187,1720239042570,-151.0,0.00046565,14]
[331329188,1720239042579,-151.0,0.00046565,14]
[331329189,1720239042588,-697.279931,0.00046565,14]
[331329190,1720239042597,-697.279931,0.00046565,14]
[331329191,1720239042606,-151.0,0.00046565,14]
[331329192,1720239042616,-151.0,0.00046565,14]
[331329193,1720239042625,-697.279931,0.00046565,14]
[331329194,1720239042635,-697.279931,0.00046565,14]
[331329195,1720239042645,-151.0,0.00046565,14]
[331329196,1720239042654,-151.0,0.00046565,14]
[331329197,1720239042665,-312.496438,0.00046565,14]
[331329198,1720239042675,-312.496438,0.00046565,14]
[331329199,1720239042684,-312.496438,0.00046565,14]
[331329200,1720239042694,-312.496438,0.00046565,14]
[331329201,1720239042703,-151.0,0.00046565,14]
[331329202,1720239042713,-296.967753,0.00046565,14]
[331329203,1720239042723,-151.0,0.00046565,14]
[331329204,1720239042732,-151.0,0.00046565,14]
[331329205,1720239042744,-151.0,0.00046565,14]
[331329206,1720239042767,-172.93926,0.00046565,14]
[331329207,1720239042777,-172.93926,0.00046565,14]
[331329209,1720239042789,-151.0,0.00046565,14]
[331329210,1720239042813,-295.865037,0.00046565,14]
[331329212,1720239042827,-172.93926,0.00046565,14]
[331329213,1720239042840,-172.93926,0.00046565,14]
[331329214,1720239042858,-151.0,0.00046565,14]
[331329215,1720239042870,-151.0,0.00046565,14]
[331329216,1720239042888,-57906.0771823,0.00046565,5]
[331329217,1720239042972,-178969.9999307,0.00046565,5]
[331329218,1720239042982,-960.41866289,0.00046574,120]
[331329219,1720239042991,-151.0,0.00046574,14]
[331329220,1720239043001,-226.168764,0.00046574,14]
[331329221,1720239043010,-226.168764,0.00046574,14]
[331329222,1720239043019,-151.0,0.00046574,14]
[331329223,1720239043029,-151.0,0.00046574,7]
[331329224,1720239043038,-151.0,0.00046574,7]
[331329225,1720239043048,-151.0,0.00046574,14]
[331329226,1720239043057,-697.279931,0.00046574,14]
[331329227,1720239043066,-151.0,0.00046574,14]
[331329228,1720239043075,-697.279931,0.00046574,14]
[331329229,1720239043084,-151.0,0.00046574,14]
[331329230,1720239043093,-1000.0,0.00046574,120]
[331329231,1720239043102,-1000.0,0.00046574,120]
[331329232,1720239043112,-1000.0,0.00046574,120]
[331329233,1720239043121,-312.496438,0.00046574,14]
[331329234,1720239043132,-1000.0,0.00046574,120]
[331329235,1720239043141,-1000.0,0.00046574,120]
[331329236,1720239043151,-170.62695744,0.00046574,120]
[331329237,1720239043162,-312.496438,0.00046574,14]
[331329238,1720239043171,-172.93926,0.00046574,14]
[331329239,1720239043181,-172.93926,0.00046574,14]
[331329240,1720239043190,-1002.41632879,0.00046574,2]
[331329241,1720239043199,-151.0,0.00046575,14]
[331329242,1720239043208,-151.0,0.00046575,14]
[331329243,1720239043218,-207.236604,0.00046575,14]
[331329244,1720239043227,-151.0,0.00046575,14]
[331329245,1720239043236,-3998.1,0.00046575,120]
[331329246,1720239043245,-1164.56,0.00046575,120]
[331329247,1720239043263,-500.0,0.00046575,120]
[331329248,1720239043287,-593.6,0.00046575,120]
[331329249,1720239043350,-500.0,0.00046575,120]
[331329250,1720239043363,-503.79555366,0.00046575,120]
[331329251,1720239043375,-170.04902434,0.00046575,120]
[331329252,1720239043385,-500.0,0.00046575,120]
[331329253,1720239043394,-564.09,0.00046575,120]
[331329254,1720239043403,-504.92498818,0.00046575,120]
[331329255,1720239043412,-7232.69,0.00046575,120]
[331329256,1720239043422,-501.51640471,0.00046575,120]
[331329257,1720239043432,-250.85437899,0.00046575,120]
[331329258,1720239043442,-500.0,0.00046575,120]
[331329259,1720239043451,-151.0,0.00046575,14]
[331329260,1720239043460,-152.521379,0.00046575,14]
[331329261,1720239043469,-500.0,0.00046575,120]
[331329262,1720239043478,-529.49957701,0.00046575,120]
[331329263,1720239043488,-500.0,0.00046575,120]
[331329264,1720239043496,-500.0,0.00046575,120]
[331329265,1720239043505,-500.0,0.00046575,120]
[331329266,1720239043514,-1912.08,0.00046575,120]
[331329267,1720239043524,-502.5901249,0.00046575,120]
[331329268,1720239043537,-1057.41940727,0.00046575,120]
[331329269,1720239043549,-503.65043947,0.00046575,120]
[331329270,1720239043561,-500.0,0.00046575,120]
[331329271,1720239043573,-177.88582175,0.00046575,20]
[331329272,1720239043585,-500.0,0.00046575,120]
[331329273,1720239043595,-190.15995,0.00046575,14]
[331329274,1720239043605,-552.27818424,0.00046575,120]
[331329275,1720239043616,-500.0,0.00046575,120]
[331329276,1720239043628,-500.0,0.00046575,120]
[331329277,1720239043639,-500.0,0.00046575,120]
[331329278,1720239043650,-517.41,0.00046575,120]
[331329279,1720239043663,-500.0,0.00046575,120]
[331329280,1720239043674,-535.43020756,0.00046575,120]
[331329281,1720239043687,-779.63,0.00046575,120]
[331329282,1720239043698,-151.0,0.00046575,14]
[331329283,1720239043710,-151.0,0.00046575,14]
[331329284,1720239043724,-1297.18,0.00046575,120]
[331329285,1720239043736,-151.0,0.00046575,14]
[331329286,1720239043749,-151.0,0.00046575,14]
[331329287,1720239043761,-151.0,0.00046575,14]
[331329288,1720239043772,-151.0,0.00046575,14]
[331329289,1720239043784,-151.0,0.00046575,14]
[331329290,1720239043794,-151.0,0.00046575,14]
[331329291,1720239043805,-151.0,0.00046575,14]
[331329292,1720239043820,-500.0,0.00046575,120]
[331329293,1720239043832,-151.0,0.00046575,14]
[331329294,1720239043843,-500.0,0.00046575,120]
[331329295,1720239043855,-151.0,0.00046575,14]
[331329296,1720239043866,-151.0,0.00046575,14]
[331329297,1720239043877,-635.86647357,0.00046575,120]
[331329298,1720239043888,-500.0,0.00046575,120]
[331329299,1720239043900,-500.0,0.00046575,120]
[331329300,1720239043911,-1328.37,0.00046575,120]
[331329301,1720239043922,-555.65,0.00046575,120]
[331329302,1720239043933,-500.0,0.00046575,120]
[331329303,1720239043944,-621.85,0.00046575,120]
[331329304,1720239043956,-500.0,0.00046575,120]
[331329305,1720239043967,-502.71,0.00046575,120]
[331329306,1720239043979,-1484.42,0.00046575,120]
[331329307,1720239043990,-500.0,0.00046575,120]
[331329308,1720239044002,-500.0,0.00046575,120]
[331329309,1720239044014,-500.0,0.00046575,120]
[331329310,1720239044025,-500.0,0.00046575,120]
[331329311,1720239044038,-500.0,0.00046575,120]
[331329312,1720239044049,-636.7793891,0.00046575,120]
[331329313,1720239044059,-500.0,0.00046575,120]
[331329314,1720239044069,-500.0,0.00046575,120]
[331329315,1720239044078,-604.0,0.00046575,120]
[331329316,1720239044088,-500.0,0.00046575,120]
[331329317,1720239044100,-500.0,0.00046575,120]
[331329318,1720239044113,-500.0,0.00046575,120]
[331329319,1720239044125,-500.0,0.00046575,120]
[331329320,1720239044136,-151.0,0.00046575,14]
[331329321,1720239044148,-500.0,0.00046575,120]
[331329322,1720239044159,-154.615161,0.00046575,14]
[331329323,1720239044169,-500.0,0.00046575,120]
[331329324,1720239044180,-500.0,0.00046575,120]
[331329325,1720239044190,-500.0,0.00046575,120]
[331329326,1720239044201,-521.6,0.00046575,120]
[331329327,1720239044212,-625.59,0.00046575,120]
[331329328,1720239044224,-500.0,0.00046575,120]
[331329329,1720239044234,-500.0,0.00046575,120]
[331329330,1720239044244,-500.0,0.00046575,120]
[331329331,1720239044254,-500.0,0.00046575,120]
[331329332,1720239044264,-680.14,0.00046575,120]
[331329333,1720239044275,-500.0,0.00046575,120]
[331329334,1720239044285,-500.0,0.00046575,120]
[331329335,1720239044296,-167.3934691,0.00046575,120]
[331329336,1720239044306,-938.98,0.00046575,120]
[331329337,1720239044316,-581.56878288,0.00046575,120]
[331329338,1720239044327,-500.0,0.00046575,120]
[331329339,1720239044338,-500.0,0.00046575,120]
[331329340,1720239044349,-500.0,0.00046575,120]
[331329341,1720239044360,-500.0,0.00046575,120]
[331329342,1720239044370,-1731.26,0.00046575,120]
[331329343,1720239044381,-504.78357785,0.00046575,120]
[331329344,1720239044391,-530.7704512,0.00046575,120]
[331329345,1720239044402,-501.23673823,0.00046575,120]
[331329346,1720239044412,-1048.6,0.00046575,120]
[331329347,1720239044423,-500.0,0.00046575,120]
[331329348,1720239044433,-179.42821908,0.00046575,120]
[331329349,1720239044444,-500.0,0.00046575,120]
[331329350,1720239044455,-500.0,0.00046575,120]
[331329351,1720239044465,-509.95,0.00046575,120]
[331329352,1720239044475,-506.40256229,0.00046575,120]
[331329353,1720239044486,-6758.61,0.00046575,120]
[331329354,1720239044497,-200.0,0.00046575,7]
[331329355,1720239044508,-500.0,0.00046575,120]
[331329356,1720239044518,-500.0,0.00046575,120]
[331329357,1720239044528,-506.12896394,0.00046575,120]
[331329358,1720239044539,-503.07161379,0.00046575,120]
[331329359,1720239044550,-500.0,0.00046575,120]
[331329360,1720239044561,-545.75,0.00046575,120]
[331329361,1720239044572,-505.75699506,0.00046575,120]
[331329362,1720239044583,-500.0,0.00046575,120]
[331329363,1720239044594,-501.73237805,0.00046575,120]
[331329364,1720239044605,-506.31691274,0.00046575,120]
[331329365,1720239044616,-506.23,0.00046575,120]
[331329366,1720239044627,-502.96385275,0.00046575,120]
[331329367,1720239044637,-500.0,0.00046575,120]
[331329368,1720239044648,-506.66467283,0.00046575,120]
[331329369,1720239044659,-502.46531251,0.00046575,120]
[331329370,1720239044672,-1164.82,0.00046575,120]
[331329371,1720239044684,-865.12,0.00046575,120]
[331329372,1720239044697,-151.0,0.00046575,14]
[331329373,1720239044707,-151.0,0.00046575,14]
[331329374,1720239044719,-1270.76,0.00046575,120]
[331329375,1720239044731,-500.0,0.00046575,120]
[331329376,1720239044742,-151.0,0.00046575,14]
[331329377,1720239044753,-500.0,0.00046575,120]
[331329378,1720239044765,-151.0,0.00046575,14]
[331329379,1720239044776,-151.0,0.00046575,14]
[331329380,1720239044787,-151.0,0.00046575,14]
[331329381,1720239044798,-151.0,0.00046575,14]
[331329382,1720239044811,-500.0,0.00046575,120]
[331329383,1720239044822,-509.87386553,0.00046575,120]
[331329384,1720239044833,-500.0,0.00046575,120]
[331329385,1720239044844,-500.0,0.00046575,120]
[331329386,1720239044856,-500.0,0.00046575,120]
[331329387,1720239044868,-500.0,0.00046575,120]
[331329388,1720239044880,-695.53,0.00046575,120]
[331329389,1720239044894,-500.0,0.00046575,120]
[331329390,1720239044905,-500.0,0.00046575,120]
[331329391,1720239044921,-500.0,0.00046575,120]
[331329392,1720239044933,-500.0,0.00046575,120]
[331329393,1720239044944,-500.0,0.00046575,120]
[331329394,1720239044955,-500.0,0.00046575,120]
[331329395,1720239044966,-500.0,0.00046575,120]
[331329396,1720239044978,-557.01,0.00046575,120]
[331329397,1720239044990,-1429.85,0.00046575,120]
[331329398,1720239045002,-500.0,0.00046575,120]
[331329399,1720239045013,-1269.04,0.00046575,120]
[331329400,1720239045024,-500.0,0.00046575,120]
[331329401,1720239045035,-508.57067345,0.00046575,120]
[331329402,1720239045048,-653.51,0.00046575,120]
[331329403,1720239045059,-500.0,0.00046575,120]
[331329404,1720239045071,-2507.14892,0.00046575,14]
[331329405,1720239045081,-500.0,0.00046575,120]
[331329406,1720239045093,-2507.14892,0.00046575,14]
[331329407,1720239045104,-2507.14892,0.00046575,14]
[331329408,1720239045117,-2507.14892,0.00046575,14]
[331329409,1720239045128,-2507.14892,0.00046575,14]
[331329410,1720239045140,-500.0,0.00046575,120]
[331329411,1720239045151,-2507.14892,0.00046575,14]
[331329412,1720239045163,-500.0,0.00046575,120]
[331329413,1720239045174,-2507.14892,0.00046575,14]
[331329414,1720239045184,-3375.17,0.00046575,120]
[331329415,1720239045195,-2071.72,0.00046575,120]
[331329416,1720239045206,-2507.14892,0.00046575,14]
[331329417,1720239045217,-2507.14892,0.00046575,14]
[331329418,1720239045228,-2507.14892,0.00046575,14]
[331329419,1720239045238,-2507.14892,0.00046575,14]
[331329420,1720239045248,-2507.14892,0.00046575,14]
[331329421,1720239045259,-2507.14892,0.00046575,14]
[331329422,1720239045270,-2507.14892,0.00046575,14]
[331329423,1720239045280,-500.0,0.00046575,120]
[331329424,1720239045301,-829.18,0.00046575,120]
[331329425,1720239045319,-500.0,0.00046575,120]
[331329426,1720239045331,-508.48225823,0.00046575,120]
[331329427,1720239045342,-1181.18,0.00046575,120]
[331329428,1720239045353,-257.762496,0.00046575,14]
[331329429,1720239045364,-500.0,0.00046575,120]
[331329430,1720239045375,-257.762496,0.00046575,14]
[331329431,1720239045385,-257.762496,0.00046575,14]
[331329432,1720239045395,-257.762496,0.00046575,14]
[331329433,1720239045405,-257.762496,0.00046575,14]
[331329434,1720239045416,-257.762496,0.00046575,14]
[331329435,1720239045425,-151.0,0.00046575,14]
[331329436,1720239045435,-151.0,0.00046575,14]
[331329437,1720239045444,-151.0,0.00046575,14]
[331329438,1720239045454,-257.762496,0.00046575,14]
[331329439,1720239045463,-257.762496,0.00046575,14]
[331329440,1720239045663,-500.0,0.00046575,120]
[331329441,1720239045680,-500.0,0.00046575,120]
[331329442,1720239045694,-257.762496,0.00046575,14]
[331329443,1720239045704,-257.762496,0.00046575,14]
[331329444,1720239045715,-257.762496,0.00046575,14]
[331329445,1720239045724,-257.762496,0.00046575,14]
[331329446,1720239045734,-618.31,0.00046575,120]
[331329447,1720239045744,-257.762496,0.00046575,14]
[331329448,1720239045753,-257.762496,0.00046575,14]
[331329449,1720239045763,-500.0,0.00046575,120]
[331329450,1720239045772,-257.762496,0.00046575,14]
[331329451,1720239045782,-257.762497,0.00046575,14]
[331329452,1720239045791,-832.767873,0.00046575,14]
[331329453,1720239045802,-832.767873,0.00046575,14]
[331329454,1720239045816,-832.767873,0.00046575,14]
[331329455,1720239045826,-502.19717525,0.00046575,120]
[331329456,1720239045835,-832.767873,0.00046575,14]
[331329457,1720239045845,-1544.67,0.00046575,120]
[331329458,1720239045856,-501.45129689,0.00046575,120]
[331329459,1720239045865,-8911.5126333,0.00046575,120]
[331329460,1720239046084,-3803.57518612,0.00046575,120]
[331329461,1720239046116,-1281.10807788,0.00046575,120]
[331329462,1720239046129,-10940.0241027,0.00046575,120]
[331329463,1720239046139,-832.767873,0.00046575,14]
[331329464,1720239046150,-516.58632574,0.00046575,120]
[331329465,1720239046160,-832.767873,0.00046575,14]
[331329466,1720239046170,-832.767873,0.00046575,14]
[331329467,1720239046180,-832.767873,0.00046575,14]
[331329468,1720239046190,-832.767873,0.00046575,14]
[331329469,1720239046199,-832.767873,0.00046575,14]
[331329470,1720239046209,-832.767873,0.00046575,14]
[331329471,1720239046218,-832.767873,0.00046575,14]
[331329472,1720239046229,-832.767873,0.00046575,14]
[331329473,1720239046239,-832.767873,0.00046575,14]
[331329474,1720239046248,-832.767873,0.00046575,14]
[331329475,1720239046258,-832.76786479,0.00046575,14]
[331329476,1720239046268,-1183.48,0.00046575,120]
[331329477,1720239046277,-617.79895715,0.00046575,120]
[331329478,1720239046287,-1916.047524,0.00046575,14]
[331329479,1720239046296,-1916.047524,0.00046575,14]
[331329480,1720239046305,-1916.047524,0.00046575,14]
[331329481,1720239046314,-500.0,0.00046575,120]
[331329482,1720239046323,-1916.047524,0.00046575,14]
[331329483,1720239046332,-1916.047524,0.00046575,14]
[331329484,1720239046342,-1916.047524,0.00046575,14]
[331329485,1720239046351,-620.23,0.00046575,120]
[331329486,1720239046360,-1916.047524,0.00046575,14]
[331329487,1720239046370,-1916.047524,0.00046575,14]
[331329488,1720239046379,-192.61237019,0.00046575,120]
[331329489,1720239046389,-1916.047524,0.00046575,14]
[331329490,1720239046398,-545.24264512,0.00046575,14]
[331329499,1720239061896,314.21232894,0.00043834,120]
[331329500,1720239084159,797.84112734,0.00043834,4]
[331329501,1720239086887,256.99442939,0.00043834,4]
[331329504,1720240027457,-187.190295,0.00021096,2]
[331329505,1720240028517,-157.27126622,0.0003,4]
[331329506,1720240029556,-473.49,0.00032207,30]
[331329507,1720240030728,-1422.59147135,0.00035615,4]
[331329508,1720240031606,-282.02541797,0.00035615,4]
[331329509,1720240042252,-179.414494,0.00021096,2]
[331329510,1720240042276,-290.11575669,0.00035615,4]
[331329511,1720240151688,-9300.64370143,0.00037899,4]
[331329512,1720240152252,-166.972163,0.00038554,2]
[331329513,1720240152735,-175.310833,0.00039129,2]
[331329514,1720240152756,-533.28102006,0.00039393,4]
[331329515,1720240152776,-175.06419494,0.00040229,4]
[331329516,1720240152795,-1758.37782493,0.00041999,4]
[331329517,1720240153100,-192.0,0.00043168,3]
[331329518,1720240153122,-500.71645255,0.00043287,4]
[331329519,1720240153144,-160.0,0.00043303,3]
[331329520,1720240153166,-8272.56354745,0.000438,10]
[331329521,1720240157587,-2258.13618081,0.00042999,4]
[331329522,1720240157608,-4022.1541118,0.000438,10]
[331329523,1720240159143,-4323.43936597,0.000438,10]
[331329524,1720240173135,-4389.03883753,0.000438,10]
[331329525,1720240200426,4000.9617772,0.00039595,2]
[331329527,1720240233839,-250.81599999,0.000438,10]
[331329711,1720240241988,-53515.58313952,0.000438,10]
[331329713,1720240242000,-70534.785838,0.000438,10]
[331329715,1720240242010,-166.972163,0.0004381,2]
[331329716,1720240242020,-302.49913969,0.00046,30]
[331329717,1720240242029,-160.0,0.00046341,4]
[331329718,1720240242039,-597.6,0.00046555,30]
[331329719,1720240242049,-498.0,0.00046555,30]
[331329720,1720240242059,-415.0,0.00046555,30]
[331329721,1720240242068,-345.84,0.00046555,30]
[331329722,1720240242077,-288.2,0.00046555,30]
[331329723,1720240242087,-288.2,0.00046555,30]
[331329724,1720240242096,-192.13,0.00046555,30]
[331329725,1720240242106,-160.11,0.00046555,30]
[331329726,1720240242116,-800.57,0.00046555,30]
[331329727,1720240242125,-1085.37,0.00046555,3]
[331329728,1720240242135,-1694.63,0.00046555,3]
[331329729,1720240242144,-500.0,0.00046564,7]
[331329730,1720240242154,-174.35075244,0.00046564,7]
[331329731,1720240242164,-142125.646268,0.00046565,5]
[331329732,1720240242177,-136745.44828739,0.00046565,5]
[331329775,1720240734084,1242.61129968,0.000265,20]
[331329776,1720241023713,325.97403384,0.0001,2]
[331329777,1720241024642,2967.40284065,0.0001,2]
[331329778,1720241089606,2247.94269303,0.0001,2]
[331329779,1720241093010,3773.14321747,0.0001,2]
[331329780,1720241133625,412.91415057,0.00012121,7]
[331329781,1720241142592,162.95005177,0.0001,2]
[331329782,1720241175898,170.51923167,9.999e-05,2]
[331329783,1720241176291,735.72098943,9.999e-05,2]
[331329784,1720241193190,3773.14321747,0.0001,2]
[331329785,1720241230026,-426.01080009,0.000139,2]
[331329786,1720241230741,-6554.70896919,0.00015,2]
[331329787,1720241237255,-315.55549343,0.0001212,2]
[331329788,1720241237276,-160.83586881,0.00015,2]
[331329789,1720241243044,-214.57525329,0.00015,2]
[331329790,1720241243418,-4034.99766121,0.00015,2]
[331329791,1720241243938,-165.64482472,0.000198,2]
[331329792,1720241243983,-167.156986,0.00021096,2]
[331329793,1720241244006,-175.526593,0.00021096,2]
[331329794,1720241244026,-2836.26696968,0.000265,2]
[331329795,1720241244047,-269.9215643,0.000274,2]
[331329796,1720241244068,-166.666666,0.00029111,2]
[331329797,1720241244087,-307.50998759,0.00029861,2]
[331329798,1720241244108,-590.89415439,0.00029879,2]
[331329799,1720241244128,-4496.31861198,0.00034634,4]
[331329800,1720241351862,-204.67964196,0.00022,2]
[331329801,1720241352407,-2359.0113301,0.00034354,2]
[331329802,1720241352910,-5069.48224996,0.00034634,4]
[331329803,1720241353396,-231.548459,0.00036882,2]
[331329804,1720241353419,-413.08396065,0.00039994,4]
[331329805,1720241353444,-155.23189542,0.00039994,4]
[331329806,1720241353467,-155.08365476,0.00039999,4]
[331329807,1720241353489,-404.29201898,0.00041589,4]
[331329808,1720241353513,-4804.32508945,0.0004198,4]
[331329809,1720241403171,5793.69399996,0.0004198,4]
[331329810,1720241408512,210.712198,0.00040963,2]
[331329811,1720241434737,155.1958273,0.0003,4]
[331329819,1720241440000,-571.79,0.00045,120]
[331329850,1720241442423,-421.23081,0.00045,120]
[331329851,1720241442433,-7366.00231137,0.00045,120]
[331329852,1720241442442,-158.0,0.00045,90]
[331329853,1720241442452,-2879.0,0.00045955,2]
[331329854,1720241442462,-1578.6679014,0.00046,120]
[331329855,1720241442472,-158.79712076,0.00046465,2]
[331329856,1720241442481,-272.98728849,0.00046465,5]
[331329857,1720241442491,-158.79712074,0.0004647,2]
[331329858,1720241442500,-158.79712074,0.00046475,2]
[331329859,1720241442510,-2000.0,0.00046475,120]
[331329860,1720241442519,-1760.89,0.00046555,3]
[331329861,1720241442530,-1467.41,0.00046555,3]
[331329862,1720241442539,-500.0,0.00046564,7]
[331329863,1720241442550,-174.35075244,0.00046564,7]
[331329864,1720241442560,-1000.0,0.00046564,120]
[331329865,1720241442570,-1000.0,0.00046564,120]
[331329866,1720241442581,-1000.0,0.00046564,120]
[331329867,1720241442590,-1000.0,0.00046564,120]
[331329868,1720241442600,-1000.0,0.00046564,120]